bitfinex-derivatives/quotes_SOLF0:USTF0_20241009
["timestamp","ask_amount","ask_price","bid_price","bid_amount"]
[1728436305588,14.115,144.37,144.34,3.4655]
[1728436306689,14.115,144.37,144.33,15.79]
[1728436306690,10.65,144.37,144.33,15.79]
[1728436306886,10.77502,144.41,144.36,10.65]
[1728436307183,10.77502,144.41,144.35,10.65]
[1728436307377,10.65,144.4,144.35,10.65]
[1728436307988,3.4644,144.39,144.36,3.4649]
[1728436308193,10.77502,144.41,144.35,10.65]
[1728436308385,0.12502,144.41,144.38,10.65]
[1728436309197,0.12502,144.41,144.39,15.79]
[1728436309389,0.12502,144.41,144.4,3.4641]
[1728436312589,3.58892,144.41,144.39,5.14]
[1728436312788,10.77502,144.41,144.39,5.14]
[1728436314590,14.23902,144.41,144.39,5.14]
[1728436317391,10.77502,144.41,144.39,8.6043]
[1728436320301,10.77502,144.41,144.37,10.65]
[1728436320495,14.1141,144.4,144.37,8.6047]
[1728436321302,3.4641,144.4,144.37,8.6047]
[1728436322282,10.77502,144.41,144.37,5.14]
[1728436322488,14.23892,144.41,144.38,3.4645]
[1728436323306,10.77502,144.41,144.37,5.14]
[1728436323490,3.4642,144.4,144.37,8.6048]
[1728436324192,14.23902,144.41,144.37,8.6048]
[1728436324498,0.12502,144.41,144.38,10.65]
[1728436325782,0.12502,144.41,144.4,3.4641]
[1728436327898,0.12502,144.41,144.4,8.5641]
[1728436328598,0.12502,144.41,144.4,19.2141]
[1728436333302,3.58892,144.41,144.38,3.4644]
[1728436333700,10.65,144.4,144.36,10.65]
[1728436333903,0.12502,144.41,144.39,3.4642]
[1728436334100,0.12502,144.41,144.36,10.65]
[1728436334903,10.65,144.4,144.35,5.1]
[1728436335208,10.65,144.39,144.35,5.1]
[1728436335508,3.4647,144.38,144.35,8.5652]
[1728436335806,10.65,144.39,144.35,8.5652]
[1728436336506,10.65,144.39,144.36,3.465]
[1728436336507,14.1145,144.39,144.36,3.465]
[1728436336707,3.4645,144.39,144.36,3.465]
[1728436339214,0.12502,144.41,144.37,10.65]
[1728436339415,0.12502,144.41,144.39,10.65]
[1728436340415,0.12502,144.41,144.4,3.4641]
[1728436341214,0.12502,144.41,144.4,14.1141]
[1728436344514,0.12502,144.47,144.45,3.4629]
[1728436346819,10.65,144.46,144.43,5.1]
[1728436347813,14.1128,144.46,144.43,8.5633]
[1728436348717,0.12502,144.47,144.44,3.4631]
[1728436348718,3.58752,144.47,144.44,3.4631]
[1728436348913,14.23752,144.47,144.44,3.4631]
[1728436350622,10.77502,144.47,144.43,5.1]
[1728436350915,3.4627,144.46,144.43,8.5633]
[1728436351124,14.1127,144.46,144.43,5.1]
[1728436351518,3.463,144.45,144.43,5.1]
[1728436352520,10.65,144.46,144.43,5.1]
[1728436352727,0.12502,144.47,144.37,61.4570721]
[1728436352728,10.65,144.44,144.37,61.4570721]
[1728436352920,10.65,144.41,144.38,5.1]
[1728436353219,14.1141,144.41,144.38,5.1]
[1728436353524,10.65,144.41,144.38,5.1]
[1728436353722,10.65,144.41,144.39,3.4642]
[1728436355019,10.65,144.41,144.38,8.5644]
[1728436355020,14.1139,144.41,144.38,8.5644]
[1728436355422,10.65,144.41,144.38,5.1]
[1728436355622,10.65,144.41,144.39,3.4643]
[1728436356218,10.65,144.43,144.38,5.1]
[1728436356424,14.1132,144.44,144.41,3.4637]
[1728436356621,12.0847,144.45,144.4,10.65]
[1728436356825,10.65,144.45,144.41,10.65]
[1728436357028,10.65,144.45,144.41,15.75]
[1728436357229,10.77502,144.47,144.41,15.75]
[1728436358427,3.4627,144.46,144.43,3.4633]
[1728436359131,14.23752,144.47,144.44,3.4631]
[1728436359729,10.77502,144.47,144.43,3.4633]
[1728436359933,3.4627,144.46,144.43,3.4633]
[1728436360627,3.463,144.45,144.42,3.4636]
[1728436363938,3.4627,144.46,144.43,3.4632]
[1728436366633,10.77502,144.47,144.41,15.75]
[1728436366634,14.23752,144.47,144.44,3.4631]
[1728436368034,0.12502,144.47,144.43,10.65]
[1728436368228,0.12502,144.47,144.45,3.4628]
[1728436368435,0.12502,144.47,144.43,10.65]
[1728436369031,0.12502,144.47,144.44,3.463]
[1728436370938,0.12502,144.47,144.45,3.4628]
[1728436374848,0.12502,144.47,144.46,3.4627]
[1728436375249,0.12502,144.47,144.44,5.1]
[1728436376442,0.12502,144.47,144.44,8.5629]
[1728436378440,0.12502,144.47,144.45,3.4629]
[1728436380936,3.58762,144.47,144.44,19.213]
[1728436382449,0.12502,144.47,144.44,15.75]
[1728436382740,0.12502,144.47,144.45,3.4629]
[1728436383139,3.58762,144.47,144.44,8.5631]
[1728436387349,3.4628,144.46,144.44,5.1]
[1728436387741,10.65,144.46,144.41,15.75]
[1728436388536,3.4628,144.46,144.42,3.4634]
[1728436388741,3.4628,144.46,144.41,15.75]
[1728436388943,0.12502,144.47,144.41,15.75]
[1728436389149,3.58762,144.47,144.44,3.463]
[1728436389347,0.12502,144.47,144.41,5.1]
[1728436389551,0.12502,144.47,144.42,10.65]
[1728436389749,3.58752,144.47,144.44,3.4632]
[1728436390145,0.12502,144.47,144.45,10.65]
[1728436391352,0.12502,144.47,144.46,3.4627]
[1728436393058,0.12502,144.47,144.46,14.1127]
[1728436399359,0.12502,144.47,144.45,1.3489]
[1728436399360,0.12502,144.47,144.45,3.4628]
[1728436399666,0.12502,144.47,144.45,8.5628]
[1728436399867,0.12502,144.47,144.45,5.1]
[1728436400066,0.12502,144.47,144.46,3.4627]
[1728436402363,0.12502,144.47,144.46,14.1127]
[1728436403567,0.12502,144.47,144.46,3.4627]
[1728436404762,0.12502,144.47,144.46,14.1127]
[1728436411077,0.12502,144.47,144.46,3.4627]
[1728436413569,0.12502,144.47,144.46,14.1127]
[1728436418767,0.12502,144.47,144.45,5.1]
[1728436419075,10.77502,144.47,144.41,10.65]
[1728436419279,10.77502,144.47,144.42,5.1]
[1728436419667,3.4627,144.46,144.43,3.4632]
[1728436420181,3.4627,144.46,144.42,5.1]
[1728436420182,14.1127,144.46,144.42,5.1]
[1728436420574,14.1127,144.46,144.42,8.5634]
[1728436420778,10.65,144.46,144.42,8.5634]
[1728436420976,10.65,144.46,144.38,2.6775]
[1728436421174,10.65,144.42,144.38,5.1]
[1728436421375,10.65,144.4,144.38,5.1]
[1728436421573,3.54570837,144.4,144.38,5.1]
[1728436421774,1.3268,144.45,144.38,5.1]
[1728436421775,10.65,144.41,144.38,5.1]
[1728436422175,14.1139,144.41,144.38,5.1]
[1728436423375,3.4644,144.39,144.35,3.59022]
[1728436423571,10.65,144.38,144.35,3.59022]
[1728436423775,3.4644,144.39,144.35,3.59022]
[1728436423978,22.65289909,144.4,144.36,14.1151]
[1728436424180,19.2142,144.4,144.36,14.1151]
[1728436424790,22.73500384,144.4,144.36,14.1151]
[1728436425183,22.73500384,144.4,144.36,3.4651]
[1728436427698,3.4644,144.39,144.35,3.59032]
[1728436427880,14.1144,144.39,144.35,3.59032]
[1728436428578,14.1144,144.39,144.36,3.465]
[1728436428780,14.1144,144.39,144.35,0.12502]
[1728436428781,3.4647,144.38,144.35,0.12502]
[1728436428984,10.65,144.37,144.35,0.12502]
[1728436429486,14.115,144.37,144.35,0.12502]
[1728436429692,12.0735,144.39,144.35,0.12502]
[1728436430691,15.5379,144.39,144.35,3.59022]
[1728436430883,1.4235,144.39,144.36,10.65]
[1728436431891,10.65,144.41,144.36,10.65]
[1728436432388,14.1139,144.41,144.37,3.4647]
[1728436432785,10.65,144.41,144.38,3.4644]
[1728436433200,3.39957221,144.4,144.38,3.4644]
[1728436434494,14.114,144.41,144.38,3.4644]
[1728436434893,10.65,144.41,144.36,10.65]
[1728436435086,2.5993,144.43,144.38,10.65]
[1728436435699,1.31,144.44,144.42,3.4636]
[1728436436498,1.31,144.44,144.41,3.4637]
[1728436437007,1.31,144.44,144.42,3.4635]
[1728436437196,1.31,144.44,144.41,10.65]
[1728436437712,1.31,144.44,144.42,3.4635]
[1728436437905,10.65,144.45,144.41,10.65]
[1728436438304,10.65,144.45,144.44,3.4632]
[1728436438504,15.66652,144.47,144.44,3.4632]
[1728436438805,1.55392,144.47,144.44,3.4632]
[1728436439007,12.20392,144.47,144.44,3.4632]
[1728436440204,10.65,144.46,144.41,10.65]
[1728436440710,1.55392,144.47,144.38,5.1]
[1728436440711,10.65,144.43,144.38,5.1]
[1728436441306,10.65,144.41,144.38,5.1]
[1728436442209,10.65,144.41,144.38,8.5644]
[1728436442612,5.1,144.45,144.36,15.75]
[1728436442813,10.65,144.42,144.36,15.75]
[1728436443010,14.1137,144.42,144.36,15.75]
[1728436443207,10.65,144.42,144.38,3.4645]
[1728436443705,3.464,144.41,144.38,3.4645]
[1728436444614,10.65,144.42,144.37,10.65]
[1728436445415,14.1137,144.42,144.39,3.4643]
[1728436450326,10.65,144.44,144.39,10.65]
[1728436450529,14.1133,144.44,144.41,3.4639]
[1728436450819,10.65,144.44,144.39,10.65]
[1728436451021,3.4634,144.43,144.4,3.464]
[1728436451221,14.1134,144.43,144.4,3.464]
[1728436451426,3.464,144.41,144.38,3.4644]
[1728436451721,10.65,144.42,144.36,5.1]
[1728436451916,10.65,144.42,144.37,10.65]
[1728436452226,3.4639,144.41,144.38,3.4644]
[1728436452718,10.65,144.43,144.38,10.65]
[1728436453217,14.1134,144.43,144.4,3.4639]
[1728436454919,10.65,144.43,144.37,10.65]
[1728436455117,14.1137,144.42,144.39,3.4642]
[1728436455425,10.65,144.41,144.35,15.87502]
[1728436455723,5.1,144.45,144.36,10.65]
[1728436455724,10.65,144.42,144.36,10.65]
[1728436456432,14.1138,144.42,144.37,3.4646]
[1728436456621,10.65,144.43,144.37,10.65]
[1728436457324,14.1135,144.43,144.37,10.65]
[1728436457722,10.65,144.42,144.37,10.65]
[1728436458325,10.65,144.42,144.39,3.4642]
[1728436458326,14.1137,144.42,144.39,3.4642]
[1728436459126,10.65,144.44,144.37,10.65]
[1728436459315,10.65,144.44,144.39,10.65]
[1728436459622,3.4634,144.43,144.4,3.464]
[1728436460824,14.1133,144.44,144.41,3.4638]
[1728436461327,12.20392,144.47,144.41,10.65]
[1728436461526,3.4627,144.46,144.43,3.4633]
[1728436463019,14.1127,144.46,144.43,3.4633]
[1728436464331,3.4629,144.45,144.42,3.4635]
[1728436464818,10.65,144.46,144.4,10.65]
[1728436465025,14.1128,144.46,144.43,3.4634]
[1728436465626,3.4628,144.46,144.43,3.4634]
[1728436468428,12.20392,144.47,144.42,10.65]
[1728436468628,0.12502,144.47,144.43,10.65]
[1728436469031,0.12502,144.47,144.45,3.4628]
[1728436470925,0.12502,144.47,144.43,10.65]
[1728436471830,0.12502,144.47,144.44,3.463]
[1728436472626,0.12502,144.47,144.45,3.4628]
[1728436473717,3.58742,144.47,144.45,3.4628]
[1728436474123,0.12502,144.47,144.45,3.4628]
[1728436474728,0.12502,144.47,144.43,10.65]
[1728436475128,0.12502,144.47,144.44,3.4631]
[1728436476228,3.58752,144.47,144.44,3.4631]
[1728436477935,0.12502,144.47,144.45,3.4628]
[1728436478122,0.12502,144.47,144.43,10.65]
[1728436478635,0.12502,144.47,144.46,3.4627]
[1728436479233,0.12502,144.47,144.45,3.4628]
[1728436479628,0.12502,144.47,144.44,15.75]
[1728436480533,0.12502,144.47,144.46,3.4627]
[1728436481934,0.12502,144.47,144.44,15.75]
[1728436482132,0.12502,144.47,144.45,3.4628]
[1728436482937,0.12502,144.47,144.46,3.4627]
[1728436490041,3.4628,144.46,144.44,5.1]
[1728436490341,0.12502,144.47,144.44,15.75]
[1728436490642,0.12502,144.47,144.46,10.65]
[1728436490842,0.12502,144.47,144.46,14.1127]
[1728436491131,0.12502,144.47,144.46,3.4627]
[1728436491542,3.463,144.45,144.42,3.4635]
[1728436491737,10.65,144.46,144.4,15.75]
[1728436492134,14.1129,144.46,144.41,3.4637]
[1728436492338,10.65,144.44,144.39,5.1]
[1728436492542,10.65,144.44,144.39,15.75]
[1728436492842,14.1133,144.44,144.41,3.4638]
[1728436493043,10.65,144.43,144.38,10.65]
[1728436493236,10.65,144.43,144.39,3.4642]
[1728436493237,3.4636,144.42,144.39,3.4642]
[1728436493439,10.65,144.43,144.38,15.75]
[1728436494235,14.1136,144.43,144.38,15.75]
[1728436494740,14.1136,144.43,144.4,3.4641]
[1728436494942,10.65,144.44,144.38,15.75]
[1728436495135,14.1133,144.44,144.41,3.4637]
[1728436496048,3.4633,144.44,144.41,3.4637]
[1728436496245,7.7023,144.46,144.35,0.12502]
[1728436496246,15.75,144.43,144.35,0.12502]
[1728436496544,10.65,144.37,144.35,0.12502]
[1728436496746,14.11931901,144.37,144.35,0.12502]
[1728436497048,17.58431901,144.37,144.35,0.12502]
[1728436500938,8.5646,144.38,144.35,3.59032]
[1728436501138,5.1,144.38,144.35,3.59032]
[1728436501450,8.64211596,144.38,144.35,3.59032]
[1728436501652,10.65,144.37,144.35,0.12502]
[1728436502354,14.115,144.37,144.35,0.12502]
[1728436503858,5.1,144.4,144.35,0.12502]
[1728436504045,15.75,144.4,144.35,0.12502]
[1728436504552,3.45801884,144.39,144.36,3.4648]
[1728436505547,14.1147,144.38,144.35,0.12502]
[1728436507362,3.4644,144.39,144.36,3.465]
[1728436507569,10.65,144.41,144.36,10.65]
[1728436507768,14.11460203,144.41,144.36,10.65]
[1728436508161,10.65,144.41,144.36,10.65]
[1728436509466,14.1141,144.4,144.37,3.4647]
[1728436510771,10.65,144.4,144.35,10.77502]
[1728436510970,14.114,144.41,144.38,3.4646]
[1728436511567,10.65,144.41,144.39,3.4642]
[1728436512067,10.65,144.41,144.36,10.65]
[1728436512269,10.65,144.41,144.38,3.4645]
[1728436512970,10.65,144.4,144.35,5.22502]
[1728436513170,10.65,144.4,144.37,3.4648]
[1728436513768,10.65,144.38,144.35,0.12502]
[1728436514068,10.65,144.37,144.35,0.12502]
[1728436514373,10.65,144.36,144.35,0.12502]
[1728436514679,19.2151,144.36,144.35,0.12502]
[1728436516577,8.5651,144.36,144.35,0.12502]
[1728436517069,12.05710803,144.36,144.35,0.12502]
[1728436520472,8.5651,144.36,144.35,0.12502]
[1728436520671,11.95671521,144.36,144.35,0.12502]
[1728436521476,8.49161521,144.36,144.3,54.30478932]
[1728436521678,3.4657,144.34,144.3,54.30478932]
[1728436521975,3.4657,144.34,144.31,3.4663]
[1728436523782,3.4654,144.35,144.31,3.4663]
[1728436524876,5.1,144.35,144.32,3.4659]
[1728436525071,5.1,144.35,144.29,0.12502]
[1728436525380,5.1,144.35,144.32,3.4659]
[1728436525579,16.65,144.39,144.3,5.1]
[1728436525874,5.1,144.39,144.31,16.65]
[1728436526284,19.41652,144.41,144.33,16.65]
[1728436526479,22.8426762,144.41,144.34,5.1]
[1728436526694,26.3066762,144.41,144.34,5.1]
[1728436526983,0.12502,144.41,144.34,5.1]
[1728436527193,0.12502,144.41,144.36,3.465]
[1728436527383,0.12502,144.41,144.34,5.1]
[1728436527884,0.12502,144.41,144.38,3.4644]
[1728436528283,0.12502,144.41,144.39,3.4643]
[1728436529590,0.12502,144.41,144.38,3.4645]
[1728436530590,16.65,144.39,144.29,0.12502]
[1728436530788,16.65,144.4,144.29,0.12502]
[1728436530789,16.65,144.34,144.29,0.12502]
[1728436531084,43.9234,144.4,144.29,0.12502]
[1728436531085,16.65,144.32,144.29,0.12502]
[1728436531284,3.4665,144.31,144.29,0.12502]
[1728436531884,16.65,144.32,144.29,0.12502]
[1728436532182,3.4665,144.3,144.29,0.12502]
[1728436533383,3.5059072,144.33,144.29,0.12502]
[1728436533689,5.1,144.35,144.29,0.12502]
[1728436533889,3.38145426,144.34,144.29,0.12502]
[1728436534081,21.75,144.36,144.29,0.12502]
[1728436534784,25.1467079,144.36,144.29,0.12502]
[1728436535091,16.65,144.34,144.29,0.12502]
[1728436535384,5.1,144.33,144.29,0.12502]
[1728436535888,3.4664,144.31,144.29,0.12502]
[1728436536192,3.49606534,144.31,144.29,0.12502]
[1728436536382,16.65,144.32,144.29,0.12502]
[1728436536583,3.4663,144.31,144.29,0.12502]
[1728436537596,20.04727705,144.32,144.29,0.12502]
[1728436537892,3.4665,144.3,144.29,0.12502]
[1728436538391,3.4672,144.28,144.23,0.12502]
[1728436538592,16.65,144.28,144.23,0.12502]
[1728436538799,5.1,144.27,144.23,0.12502]
[1728436538997,3.4676,144.26,144.23,0.12502]
[1728436540998,11.96563709,144.27,144.23,0.12502]
[1728436541298,11.96563709,144.27,144.24,3.4679]
[1728436541493,8.49833709,144.27,144.23,0.12502]
[1728436541797,11.96563709,144.27,144.23,0.12502]
[1728436542496,8.49833709,144.27,144.24,3.4678]
[1728436544302,16.65,144.3,144.23,0.12502]
[1728436544506,5.1,144.3,144.23,0.12502]
[1728436544796,5.1,144.3,144.23,5.22502]
[1728436545397,5.1,144.3,144.28,3.4668]
[1728436545895,2.785,144.33,144.23,21.87502]
[1728436546099,7.885,144.33,144.25,16.65]
[1728436546397,1.4297,144.33,144.28,3.467]
[1728436546599,1.4297,144.33,144.26,5.1]
[1728436547398,1.4297,144.33,144.31,3.4661]
[1728436547905,102.25269786,144.35,144.26,5.1]
[1728436548790,3.53096625,144.34,144.26,5.1]
[1728436549605,3.4656,144.34,144.3,3.4663]
[1728436550298,97.15269786,144.35,144.27,16.65]
[1728436550491,97.15269786,144.35,144.29,16.65]
[1728436550793,0.12502,144.35,144.29,21.75]
[1728436551002,0.12502,144.35,144.34,3.4656]
[1728436552097,1.46642,144.41,144.38,3.4644]
[1728436552402,0.12502,144.41,144.35,21.75]
[1728436552707,0.12502,144.47,144.39,16.65]
[1728436552906,0.12502,144.47,144.4,5.1]
[1728436553111,0.12502,144.47,144.45,3.4629]
[1728436553298,0.12502,144.47,144.4,5.1]
[1728436553299,7.04460544,144.47,144.4,5.1]
[1728436553605,3.58752,144.47,144.4,5.1]
[1728436553803,7.09207669,144.47,144.4,5.1]
[1728436554106,3.58752,144.47,144.43,3.4632]
[1728436554307,0.12502,144.47,144.4,5.1]
[1728436555199,0.12502,144.47,144.44,3.4631]
[1728436555710,16.65,144.46,144.4,5.1]
[1728436556802,16.65,144.46,144.39,5.1]
[1728436557002,21.75,144.46,144.39,5.1]
[1728436557707,3.4631,144.45,144.41,3.4637]
[1728436558206,3.4631,144.45,144.39,5.1]
[1728436559508,5.1,144.46,144.39,5.1]
[1728436559900,5.1,144.46,144.44,3.4631]
[1728436560411,5.1,144.46,144.43,3.4632]
[1728436561516,0.12502,144.47,144.39,21.75]
[1728436562003,0.12502,144.47,144.45,3.4628]
[1728436562213,0.12502,144.47,144.43,5.1]
[1728436562609,0.12502,144.47,144.44,3.4631]
[1728436562801,0.12502,144.47,144.43,5.1]
[1728436563611,0.12502,144.47,144.45,3.4627]
[1728436564818,0.12502,144.47,144.43,5.1]
[1728436564819,0.12502,144.47,144.46,3.4627]
[1728436569804,0.12502,144.47,144.39,16.65]
[1728436570115,0.12502,144.47,144.4,5.1]
[1728436570413,3.4631,144.45,144.4,5.1]
[1728436570606,0.12502,144.47,144.4,5.1]
[1728436570917,0.12502,144.47,144.42,3.4636]
[1728436571118,3.4628,144.46,144.42,3.4636]
[1728436571707,0.12502,144.47,144.38,16.65]
[1728436571910,3.4631,144.45,144.41,3.4638]
[1728436572113,16.65,144.46,144.39,5.1]
[1728436572309,3.4627,144.46,144.39,5.1]
[1728436572915,3.4627,144.46,144.42,3.4635]
[1728436573811,0.12502,144.47,144.38,16.65]
[1728436574008,0.12502,144.47,144.4,3.4639]
[1728436574009,3.4633,144.44,144.4,3.4639]
[1728436574309,16.65,144.46,144.39,5.1]
[1728436574522,20.1127,144.46,144.42,3.4635]
[1728436574936,3.4631,144.45,144.39,5.1]
[1728436575214,16.65,144.46,144.41,3.4638]
[1728436575408,3.4635,144.43,144.37,1.3663]
[1728436575723,3.4635,144.43,144.39,3.4642]
[1728436575914,3.4635,144.43,144.38,5.1]
[1728436576111,3.4635,144.43,144.4,3.464]
[1728436576318,6.97002879,144.43,144.4,3.464]
[1728436577321,4.7791,144.45,144.42,3.4635]
[1728436577718,3.4633,144.44,144.4,3.4641]
[1728436577921,1.3161,144.45,144.4,3.4641]
[1728436578221,1.3161,144.45,144.38,5.1]
[1728436578430,3.4632,144.44,144.41,3.4638]
[1728436578825,1.3161,144.45,144.42,3.4634]
[1728436580819,8.5628,144.46,144.38,21.75]
[1728436581318,8.5628,144.46,144.42,3.4634]
[1728436581717,5.1,144.46,144.42,3.4634]
[1728436581921,3.4629,144.45,144.42,3.4634]
[1728436582726,21.75,144.46,144.38,5.1]
[1728436582928,16.65,144.44,144.37,1.3663]
[1728436583223,3.464,144.41,144.38,5.1]
[1728436583426,3.50943422,144.43,144.38,5.1]
[1728436583823,3.50943422,144.43,144.38,8.5645]
[1728436583824,3.4639,144.41,144.38,8.5645]
[1728436585727,3.4639,144.41,144.38,5.1]
[1728436586722,3.4639,144.41,144.37,1.3663]
[1728436587531,3.4639,144.41,144.38,3.4646]
[1728436589031,3.4637,144.42,144.36,7.8119]
[1728436589927,6.87500006,144.41,144.38,3.4645]
[1728436590127,16.65,144.43,144.36,5.1]
[1728436590327,3.464,144.41,144.37,3.4647]
[1728436590632,3.51501253,144.41,144.36,21.75]
[1728436590827,1.3058,144.45,144.36,23.1697]
[1728436591030,16.77502,144.47,144.38,16.65]
[1728436591232,21.87502,144.47,144.39,5.1]
[1728436591427,0.12502,144.47,144.39,5.1]
[1728436591628,0.12502,144.47,144.42,16.65]
[1728436591831,0.12502,144.47,144.43,5.1]
[1728436592024,0.12502,144.47,144.44,3.4631]
[1728436592236,0.12502,144.47,144.43,5.1]
[1728436592632,0.12502,144.47,144.45,3.4628]
[1728436592935,0.12502,144.47,144.43,5.1]
[1728436593137,97.03232969,144.53,144.48,3.462]
[1728436593339,97.03232969,144.53,144.46,5.1]
[1728436593738,0.12502,144.53,144.47,16.65]
[1728436594333,0.12502,144.53,144.5,3.4616]
[1728436594531,0.12502,144.53,144.49,5.1]
[1728436595035,0.12502,144.53,144.5,3.4617]
[1728436597439,0.12502,144.53,144.49,8.5619]
[1728436597632,16.77502,144.53,144.47,5.1]
[1728436597830,3.4617,144.51,144.47,5.1]
[1728436598033,3.4617,144.51,144.47,8.5624]
[1728436598337,3.4619,144.5,144.47,5.1]
[1728436598730,16.77502,144.53,144.47,5.1]
[1728436599542,16.77502,144.53,144.46,5.18]
[1728436599838,0.12502,144.53,144.46,5.18]
[1728436600039,3.4616,144.51,144.47,3.4624]
[1728436602437,3.4613,144.52,144.46,5.18]
[1728436602635,0.12502,144.53,144.46,21.83]
[1728436603036,3.58612,144.53,144.46,21.83]
[1728436603439,3.58612,144.53,144.48,3.4622]
[1728436603646,3.58612,144.53,144.49,5.18]
[1728436604039,0.12502,144.53,144.5,3.4616]
[1728436605543,3.58612,144.53,144.5,3.4616]
[1728436605947,0.12502,144.53,144.49,5.18]
[1728436606149,3.4612,144.52,144.49,8.6419]
[1728436606742,3.4615,144.51,144.49,5.18]
[1728436607149,0.12502,144.53,144.49,5.18]
[1728436607750,3.4614,144.52,144.49,5.18]
[1728436608756,3.58612,144.53,144.49,5.18]
[1728436608948,0.12502,144.53,144.49,5.18]
[1728436609452,3.4614,144.52,144.49,8.6419]
[1728436613457,3.4614,144.52,144.5,3.4617]
[1728436614264,3.58612,144.53,144.5,3.4617]
[1728436614759,0.12502,144.53,144.52,3.4612]
[1728436622774,3.58602,144.53,144.5,3.4616]
[1728436623075,0.12502,144.53,144.49,5.18]
[1728436623569,0.12502,144.53,144.49,8.642]
[1728436624071,0.12502,144.53,144.49,3.462]
[1728436624775,3.4614,144.52,144.49,3.462]
[1728436625468,3.4615,144.51,144.48,3.4621]
[1728436625669,0.12502,144.53,144.48,3.4621]
[1728436625875,0.12502,144.53,144.47,5.16]
[1728436626172,3.4617,144.5,144.47,8.6223]
[1728436626570,0.12502,144.53,144.46,5.16]
[1728436626771,1.48712,144.53,144.46,5.16]
[1728436626973,3.4619,144.5,144.46,5.16]
[1728436627867,1.48712,144.53,144.46,5.16]
[1728436628063,3.4618,144.5,144.45,6.4535]
[1728436628674,3.4618,144.5,144.47,3.4624]
[1728436629681,1.48712,144.53,144.45,6.4535]
[1728436629976,3.4616,144.51,144.45,6.4535]
[1728436630371,3.4616,144.51,144.48,3.4622]
[1728436631787,14.21612,144.53,144.5,3.4617]
[1728436631994,0.12502,144.53,144.52,10.63]
[1728436632689,0.12502,144.53,144.52,14.0912]
[1728436634196,3.4601,144.57,144.54,3.4607]
[1728436634397,10.63,144.58,144.51,6.3999]
[1728436634398,0.12502,144.59,144.53,16.61]
[1728436634989,0.12502,144.59,144.54,5.1]
[1728436635394,3.4599,144.58,144.55,3.4604]
[1728436635787,0.12502,144.59,144.54,5.1]
[1728436636094,0.12502,144.65,144.55,16.61]
[1728436636288,3.58493543,144.65,144.55,16.61]
[1728436636489,16.61,144.64,144.57,3.46]
[1728436636686,20.08410251,144.64,144.57,3.46]
[1728436637192,3.4589,144.62,144.57,3.46]
[1728436637495,25.18410251,144.64,144.57,3.46]
[1728436638793,3.4593,144.61,144.57,3.46]
[1728436638998,25.18410251,144.64,144.58,3.4598]
[1728436639295,3.4591,144.61,144.58,3.4598]
[1728436640494,3.459,144.62,144.55,16.61]
[1728436640690,25.18410251,144.64,144.57,8.56]